bitfinex-derivatives/quotes_ETHF0:USTF0_20250607
["timestamp","ask_amount","ask_price","bid_price","bid_amount"]
[1749332486028,2.0598767,2522.1,2522.0,1.42691172]
[1749332486237,2.0598767,2522.1,2522.0,4.63471172]
[1749332486539,2.0598767,2522.1,2522.0,5.42727172]
[1749332486835,2.0598767,2522.1,2522.0,4.63471172]
[1749332488933,2.0598767,2522.1,2522.0,5.42727172]
[1749332489440,1.2673467,2522.1,2522.0,5.42727172]
[1749332491235,1.26765643,2522.2,2522.0,4.63471172]
[1749332491435,1.26765643,2522.2,2522.1,5.34453]
[1749332493152,1.26765643,2522.2,2522.1,8.55233]
[1749332497043,1.26765643,2522.2,2522.1,5.34453]
[1749332497245,1.26765643,2522.2,2522.1,8.55233]
[1749332502346,1.26765643,2522.2,2522.1,5.34453]
[1749332502549,1.26765643,2522.2,2522.1,8.55233]
[1749332505147,0.6379,2522.3,2522.2,0.7925]
[1749332505449,1.90460463,2522.3,2522.2,1.4833]
[1749332507242,1.90460463,2522.3,2522.2,4.6911]
[1749332507748,0.6379,2522.3,2522.2,4.6911]
[1749332510945,0.6379,2522.3,2522.2,4.76001172]
[1749332519761,1.90223871,2522.3,2522.2,4.76001172]
[1749332520560,0.6379,2522.3,2522.2,4.76001172]
[1749332520861,1.90225104,2522.3,2522.2,4.76001172]
[1749332521458,0.00595,2522.9,2522.4,1.98109]
[1749332521658,0.79824,2522.9,2522.8,4.00011]
[1749332522162,0.00595,2522.9,2522.8,4.00011]
[1749332523464,1.46693,2522.9,2522.8,4.00011]
[1749332523664,1.46693,2522.9,2522.8,0.79231]
[1749332525366,0.67465,2522.9,2522.8,0.79231]
[1749332525564,1.46693,2522.9,2522.8,0.79231]
[1749332525766,2.82113,2522.9,2522.8,0.79231]
[1749332533571,4.08472055,2522.9,2522.8,0.79231]
[1749332538073,3.29244055,2522.9,2522.8,0.79231]
[1749332538474,4.08472055,2522.9,2522.8,5.34231]
[1749332539179,3.29244055,2522.9,2522.8,5.34231]
[1749332541176,3.2924308,2522.9,2522.8,5.34231]
[1749332541377,3.2924308,2522.9,2522.8,5.41122172]
[1749332542071,3.2924308,2522.9,2522.8,0.86122172]
[1749332557791,3.29387913,2522.9,2522.8,0.86122172]
[1749332559283,12.90610783,2523.8,2523.1,0.79221]
[1749332559489,0.79221,2523.2,2523.1,3.2078]
[1749332559688,2.05725774,2523.2,2523.1,3.2078]
[1749332560387,2.05725774,2523.2,2523.1,4.00001]
[1749332563892,2.74255774,2523.2,2523.1,4.00001]
[1749332564094,1.95034774,2523.2,2523.1,4.00001]
[1749332564497,3.26334774,2523.2,2523.1,4.00001]
[1749332565597,4.05552774,2523.2,2523.1,4.00001]
[1749332567493,3.26334774,2523.2,2523.1,4.00001]
[1749332569596,4.05552774,2523.2,2523.1,4.00001]
[1749332570499,4.05552774,2523.2,2523.1,0.79221]
[1749332570695,4.05552774,2523.2,2523.1,4.06892172]
[1749332571700,3.26334774,2523.2,2523.1,4.06892172]
[1749332574495,1.9983,2523.2,2523.1,4.06892172]
[1749332574694,4.05532216,2523.2,2523.1,4.06892172]
[1749332578402,4.05532216,2523.2,2523.1,3.27671172]
[1749332578806,4.05532216,2523.2,2523.1,4.06893172]
[1749332582003,4.05532216,2523.2,2523.1,0.86113172]
[1749332589702,4.05532216,2523.2,2523.1,0.06891172]
[1749332592710,4.05427907,2523.2,2523.1,0.06891172]
[1749332594712,4.05427907,2523.2,2523.1,0.86113172]
[1749332595710,4.05427907,2523.2,2523.1,0.06891172]
[1749332596306,4.05427907,2523.2,2523.1,0.86112172]
[1749332604624,2.79048,2523.2,2523.1,0.86112172]
[1749332604827,4.05424903,2523.2,2523.1,0.86112172]
[1749332610422,4.05424903,2523.2,2523.1,0.06891172]
[1749332611327,4.05424903,2523.2,2523.1,0.86112172]
[1749332611527,4.05108503,2523.2,2523.1,0.86112172]
[1749332616521,3.25890503,2523.2,2523.1,0.86112172]
[1749332616831,2.73808503,2523.2,2523.1,0.86112172]
[1749332617033,2.73819448,2523.2,2523.1,0.86112172]
[1749332618832,2.73819448,2523.2,2523.1,4.06892172]
[1749332619528,2.05289448,2523.2,2523.1,4.06892172]
[1749332619728,1.26071448,2523.2,2523.1,4.06892172]
[1749332620634,2.05289448,2523.2,2523.1,4.06892172]
[1749332621829,1.26071448,2523.2,2523.1,4.06892172]
[1749332627736,0.79204,2523.7,2523.2,1.9804]
[1749332628040,0.79204,2523.7,2523.6,0.79205]
[1749332628243,0.79204,2523.7,2523.6,5.34305]
[1749332629535,1.43472,2523.8,2523.7,0.79203]
[1749332629733,2.69272,2523.8,2523.7,0.79203]
[1749332630642,1.9007,2523.8,2523.7,0.79203]
[1749332630839,2.69272,2523.8,2523.6,5.34303]
[1749332631032,2.69272,2523.8,2523.7,0.79203]
[1749332631638,0.79203,2523.7,2523.6,5.34304]
[1749332632037,2.13263,2523.7,2523.6,5.34304]
[1749332632239,1.3406,2523.7,2523.6,5.34304]
[1749332635444,0.79198,2523.9,2523.8,0.79199]
[1749332636146,2.05978,2523.9,2523.8,0.79199]
[1749332640848,0.79201,2523.8,2523.7,0.79201]
[1749332641049,2.12921,2523.8,2523.7,0.79201]
[1749332641252,0.79203,2523.7,2523.6,5.34304]
[1749332641448,1.9754,2523.7,2523.6,5.34304]
[1749332641644,2.76743,2523.7,2523.6,5.34304]
[1749332642051,1.9754,2523.7,2523.6,5.34304]
[1749332642247,2.76743,2523.7,2523.6,5.34304]
[1749332643649,1.9754,2523.7,2523.6,5.34304]
[1749332655755,2.76743,2523.7,2523.6,5.34304]
[1749332658859,2.76743,2523.7,2523.6,0.79204]
[1749332659163,2.76743,2523.7,2523.6,5.33904]
[1749332659565,1.47423,2523.7,2523.6,5.33904]
[1749332659957,1.47423,2523.7,2523.6,5.40795172]
[1749332661356,0.6822,2523.7,2523.6,5.40795172]
[1749332662167,1.47423,2523.7,2523.6,6.04955172]
[1749332663064,1.47423,2523.7,2523.6,9.25735172]
[1749332663259,0.6822,2523.7,2523.6,9.25735172]
[1749332663961,1.47423,2523.7,2523.6,9.25735172]
[1749332664464,0.6822,2523.7,2523.6,9.25735172]
[1749332666662,1.47423,2523.7,2523.6,9.25735172]
[1749332666864,0.6822,2523.7,2523.6,9.25735172]
[1749332668466,0.79202,2523.8,2523.7,0.79203]
[1749332668661,2.03572197,2523.8,2523.7,0.79203]
[1749332669067,1.24370197,2523.8,2523.7,0.79203]
[1749332669259,2.03570197,2523.8,2523.7,0.79203]
[1749332669460,3.35810197,2523.8,2523.7,0.79203]
[1749332676170,3.35810197,2523.8,2523.7,0.86094172]
[1749332678269,2.56610197,2523.8,2523.7,0.86094172]
[1749332678972,3.35810197,2523.8,2523.7,0.86094172]
[1749332679872,2.56610197,2523.8,2523.7,0.86094172]
[1749332680066,3.35809197,2523.8,2523.7,0.86094172]
[1749332681175,2.56610197,2523.8,2523.7,0.86094172]
[1749332683678,3.35809197,2523.8,2523.7,0.86094172]
[1749332684780,2.56610197,2523.8,2523.7,4.06874172]
[1749332685267,3.35810197,2523.8,2523.7,4.06874172]
[1749332685577,2.56610197,2523.8,2523.7,4.06874172]
[1749332685877,1.3224,2523.8,2523.7,4.06874172]
[1749332686078,2.56626371,2523.8,2523.7,4.06874172]
[1749332686277,3.35826371,2523.8,2523.7,4.06874172]
[1749332686575,2.56626371,2523.8,2523.7,4.06874172]
[1749332687378,3.35826371,2523.8,2523.7,4.06874172]
[1749332687783,2.56626371,2523.8,2523.7,4.06874172]
[1749332688474,3.35826371,2523.8,2523.7,4.06874172]
[1749332688784,2.56626371,2523.8,2523.7,4.06874172]
[1749332688982,3.35826371,2523.8,2523.7,4.06874172]
[1749332689281,2.56626371,2523.8,2523.7,4.06874172]
[1749332690280,2.56626371,2523.8,2523.7,0.86094172]
[1749332690481,2.56626371,2523.8,2523.7,4.06874172]
[1749332691485,2.56626371,2523.8,2523.7,8.61474172]
[1749332691981,1.24386371,2523.8,2523.7,8.61474172]
[1749332696787,1.24386371,2523.8,2523.7,5.40694172]
[1749332697095,1.48757,2523.9,2523.7,5.40694172]
[1749332697096,1.48757,2523.9,2523.8,0.792]
[1749332697282,2.73137498,2523.9,2523.8,0.792]
[1749332697987,2.73137498,2523.9,2523.8,3.9998]
[1749332699890,2.73137498,2523.9,2523.8,0.792]
[1749332700187,2.73137498,2523.9,2523.8,3.9998]
[1749332700888,1.93940498,2523.9,2523.8,3.9998]
[1749332701091,1.93940498,2523.9,2523.8,8.5458]
[1749332703189,1.93940498,2523.9,2523.8,5.338]
[1749332703391,1.93940498,2523.9,2523.8,8.5458]
[1749332705691,1.93940498,2523.9,2523.8,8.61471172]
[1749332708692,2.73136498,2523.9,2523.8,8.61471172]
[1749332717704,2.73136498,2523.9,2523.8,8.5458]
[1749332718699,2.73136498,2523.9,2523.8,4.06871172]
[1749332718905,2.73136498,2523.9,2523.8,3.27671172]
[1749332722007,2.73136498,2523.9,2523.8,0.06891172]
[1749332726017,2.73136498,2523.9,2523.8,3.27671172]
[1749332728622,2.73136498,2523.9,2523.8,4.06871172]
[1749332728923,2.73136498,2523.9,2523.8,3.27671172]
[1749332729113,2.73136498,2523.9,2523.8,4.06871172]
[1749332729313,2.73136498,2523.9,2523.8,3.27671172]
[1749332731115,2.73136498,2523.9,2523.8,0.06891172]
[1749332739525,2.73136498,2523.9,2523.8,0.86091172]
[1749332739724,1.93882457,2523.9,2523.8,0.86091172]
[1749332739925,1.93882457,2523.9,2523.8,1.49601172]
[1749332741022,2.73078457,2523.9,2523.8,0.06891172]
[1749332742527,4.20258456,2523.9,2523.8,0.06891172]
[1749332763532,0.792,2523.8,2523.7,3.2078]
[1749332763735,3.34922457,2523.8,2523.7,3.2078]
[1749332763931,0.79206,2523.6,2523.5,5.33707]
[1749332764233,0.79206,2523.6,2523.5,8.54487]
[1749332764842,0.79206,2523.6,2523.5,5.33707]
[1749332765042,0.79206,2523.6,2523.5,8.54487]
[1749332767844,0.79206,2523.6,2523.5,7.7528]
[1749332768639,0.79206,2523.6,2523.5,0.79209]
[1749332768835,2.16456,2523.6,2523.5,8.54489]
[1749332772636,2.16456,2523.6,2523.5,3.2078]
[1749332772840,0.79218,2523.2,2523.1,7.7528]
[1749332773240,0.79225,2523.0,2522.9,0.00595226]
[1749332773442,29.75559587,2523.0,2521.7,3.2078]
[1749332773637,3.16715239,2521.9,2520.3,3.2078]
[1749332773837,3.2078,2520.5,2520.0,3.2078]
[1749332774038,3.2078,2520.8,2520.1,1.2699]
[1749332774244,3.79715239,2521.8,2520.6,3.2078]
[1749332774447,0.79867226,2521.5,2521.1,0.79283]
[1749332774644,0.00595226,2521.5,2521.4,0.79275]
[1749332774850,0.00595226,2521.5,2521.4,1.48475]
[1749332775049,0.00595226,2521.5,2521.4,2.75465]
[1749332778748,0.00595226,2521.5,2521.4,7.75465]
[1749332778948,3.2078,2522.2,2521.4,7.75465]
[1749332779152,0.63,2522.4,2521.8,3.2078]
[1749332779351,0.63,2522.4,2522.2,4.00028]
[1749332779751,0.63,2522.4,2522.2,0.79248]
[1749332781343,0.63,2522.4,2521.9,9.1302]
[1749332781344,0.63,2522.4,2521.9,7.8418]
[1749332781543,1.3775,2522.3,2521.9,7.8418]
[1749332782353,0.63,2522.4,2522.2,0.79248]
[1749332783452,0.7924,2522.6,2521.9,7.8418]
[1749332783650,0.79236,2522.7,2522.4,0.79242]
[1749332783849,0.79238,2522.6,2522.4,0.79242]
[1749332785157,0.7924,2522.5,2522.3,0.79840226]
[1749332785455,0.79239,2522.6,2522.4,0.79244]
[1749332787060,0.7924,2522.5,2522.3,0.79840226]
[1749332787864,0.79239,2522.6,2522.4,0.79243]
[1749332788354,0.7924,2522.5,2522.4,0.79243]
[1749332788860,2.0298,2522.8,2522.4,0.79243]
[1749332789064,0.79244,2522.4,2522.3,0.00595226]
[1749332789260,0.79244,2522.4,2522.3,0.79842226]
[1749332790563,1.44464,2522.8,2522.3,0.00595226]
[1749332790761,1.44464,2522.8,2522.6,0.79235]
[1749332791361,1.44464,2522.8,2522.7,0.79235]
[1749332791558,0.79234,2522.7,2522.6,0.79235]
[1749332795464,0.79237,2522.6,2522.5,0.79238]
[1749332797556,0.79236,2522.7,2522.6,0.79236]
[1749332798056,0.79236,2522.7,2522.6,0.86127172]
[1749332799864,1.44463,2522.8,2522.7,0.79234]
[1749332800056,1.44463,2522.8,2522.6,0.06891172]
[1749332800262,0.79234,2522.7,2522.6,0.86127172]
[1749332803466,2.03934793,2522.7,2522.6,0.86127172]
[1749332804968,2.03934793,2522.7,2522.6,0.06891172]
[1749332805169,2.03934793,2522.7,2522.6,0.86128172]
[1749332806475,1.24700793,2522.7,2522.6,0.86128172]
[1749332807365,2.03934793,2522.7,2522.6,0.86128172]
[1749332807773,1.24700793,2522.7,2522.6,0.86128172]
[1749332810476,2.03934793,2522.7,2522.6,0.86128172]
[1749332812872,13.01084793,2522.7,2522.6,1e-08]
[1749332813078,0.79266,2521.7,2521.5,0.79269]
[1749332814479,3.21375226,2521.9,2521.4,3.2078]
[1749332814673,0.79272,2521.5,2521.4,3.2078]
[1749332815273,0.79275,2521.4,2521.3,0.00595226]
[1749332815777,2.04158433,2521.4,2521.3,0.00595226]
[1749332815979,2.69598433,2521.4,2521.3,0.00595226]
[1749332816179,3.97078433,2521.4,2521.3,0.00595226]
[1749332816982,8.17803433,2521.4,2520.8,4.616]
[1749332817172,3.2078,2521.1,2520.6,1.44248]
[1749332817373,4.00076,2520.8,2520.5,5.41]
[1749332818381,0.79297,2520.7,2520.5,5.41]
[1749332818883,4.00075,2520.8,2520.5,5.41]
[1749332819881,4.00075,2520.8,2520.6,0.793]
[1749332820078,3.2078,2520.8,2520.7,0.79297]
[1749332820283,4.617,2521.6,2520.5,4.617]
[1749332820284,3.2078,2521.1,2521.0,0.79285]
[1749332820489,1.44716,2521.4,2521.1,0.79284]
[1749332820786,1.44716,2521.4,2521.2,0.7928]
[1749332821080,0.00595226,2521.9,2521.5,1.9818]
[1749332821286,0.00595226,2521.9,2521.8,0.79262]
[1749332821781,0.00595226,2521.9,2521.8,2.74292]
[1749332832996,0.00595226,2521.9,2521.8,0.79262]
[1749332833197,6.25849414,2521.9,2520.3,3.2078]
[1749332833401,0.79303,2520.5,2519.6,3.2078]
[1749332833596,0.79303,2520.5,2519.7,4.617]
[1749332833812,2.17393,2520.5,2520.2,0.79311]
[1749332834395,2.17393,2520.5,2520.1,0.79315]
[1749332834606,2.17393,2520.5,2520.2,0.79312]
[1749332834791,3.2078,2520.8,2520.7,0.79297]
[1749332834997,3.2078,2521.1,2520.6,4.618]
[1749332835495,3.2078,2521.1,2521.0,0.79287]
[1749332836102,1.47179999,2521.3,2521.2,0.79281]
[1749332836500,1.47179999,2521.3,2521.2,0.86172172]
[1749332844592,2.26457999,2521.3,2521.2,0.06891172]
[1749332845300,9.32247999,2521.3,2521.2,0.06891172]
[1749332846903,12.53027999,2521.3,2521.2,0.06891172]
[1749332852108,18.52827999,2521.3,2521.2,0.06891172]
[1749332855509,13.52827999,2521.3,2521.2,0.06891172]
[1749332855909,18.52827999,2521.3,2521.2,0.06891172]
[1749332857813,19.78045086,2521.3,2521.2,0.06891172]
[1749332858119,18.52827999,2521.3,2521.2,0.06891172]
[1749332858513,19.78080828,2521.3,2521.2,0.06891172]
[1749332858716,16.57300828,2521.3,2521.2,0.06891172]
[1749332858914,19.78080828,2521.3,2521.2,0.06891172]
[1749332862416,14.78080828,2521.3,2521.2,0.06891172]
[1749332870913,13.38980828,2521.3,2521.2,0.06891172]
[1749332871817,10.18200828,2521.3,2521.2,0.06891172]
[1749332872021,13.38980828,2521.3,2521.2,0.06891172]
[1749332873724,12.72290828,2521.3,2521.2,0.06891172]
[1749332874025,12.72637138,2521.3,2521.2,0.06891172]
[1749332876227,9.51857138,2521.3,2521.2,0.06891172]
[1749332876526,12.72637138,2521.3,2521.2,0.06891172]
[1749332883026,12.7275122,2521.3,2521.2,0.06891172]
[1749332885324,6.7295122,2521.3,2521.2,0.06891172]
[1749332893329,6.72831756,2521.3,2521.2,0.06891172]
[1749332894237,6.72829521,2521.3,2521.2,0.06891172]
[1749332899642,5.47237999,2521.3,2521.2,0.06891172]
[1749332899840,6.72822453,2521.3,2521.2,0.06891172]
[1749332916355,6.72828634,2521.3,2521.2,0.06891172]
[1749332918355,8.01600634,2521.3,2520.6,1.3931]
[1749332918550,0.793,2520.6,2520.5,0.64]
[1749332918951,2.04860575,2520.6,2520.5,0.64]
[1749332919550,2.04860575,2520.6,2520.5,1.973]
[1749332919962,1.25560575,2520.6,2520.5,1.973]
[1749332920961,1.25560575,2520.6,2520.5,2.76603]
[1749332922462,4.00074,2520.8,2520.6,0.79297]
[1749332922656,2.04180983,2520.7,2520.6,1.3302]
[1749332925565,0.793,2520.6,2520.5,0.64]
[1749332925761,3.2078,2520.8,2520.5,0.64]
[1749332926065,1.2486536,2520.7,2520.6,0.793]
[1749332926258,2.0416136,2520.7,2520.5,2.7437]
[1749332926459,1.24855685,2520.6,2520.5,2.7437]
[1749332926656,4.00075,2520.8,2520.6,0.79298]
[1749332926857,2.04156098,2520.7,2520.5,2.74371]
[1749332927057,4.00074,2520.8,2520.6,0.79298]
[1749332927259,3.2078,2520.8,2520.7,2.10366]
[1749332927460,5.24926584,2520.8,2520.7,1.3107]
[1749332928365,5.24926584,2520.8,2520.5,5.293]
[1749332928564,1.24853584,2520.7,2520.6,0.79299]
[1749332929863,1.24853584,2520.7,2520.6,0.86190172]
[1749332930171,1.24853584,2520.7,2520.6,2.15230172]
[1749332930469,0.79292,2520.9,2520.7,0.79296]
[1749332930667,1.24699301,2520.8,2520.7,0.79296]
[1749332930861,2.03992301,2520.8,2520.6,2.15228172]
[1749332931061,1.24699301,2520.7,2520.6,2.15228172]
[1749332931463,1.24708486,2520.8,2520.7,0.79296]
[1749332932061,2.04001486,2520.8,2520.6,2.15228172]
[1749332932264,1.24708486,2520.7,2520.6,2.15228172]
[1749332932766,0.79293,2520.8,2520.6,2.15228172]
[1749332932968,1.24708486,2520.7,2520.6,2.15228172]
[1749332934164,1.24708486,2520.7,2520.6,1.35931172]
[1749332934367,1.24708486,2520.7,2520.6,2.15228172]
[1749332934667,2.0409556,2520.8,2520.6,2.15229172]
[1749332934968,1.2480256,2520.7,2520.6,1.35931172]
[1749332936270,1.2480256,2520.7,2520.6,2.15230172]
[1749332936766,2.0409856,2520.7,2520.6,1.35931172]
[1749332937868,2.0409856,2520.7,2520.6,0.06891172]
[1749332938771,2.0409856,2520.7,2520.6,0.86190172]
[1749332939068,2.0409856,2520.7,2520.6,0.06891172]
[1749332941973,4.6580856,2520.7,2520.6,0.06891172]
[1749332943365,2.0409856,2520.7,2520.6,0.06891172]
[1749332944567,2.0409856,2520.7,2520.6,0.86190172]
[1749332944767,2.0409856,2520.7,2520.6,0.06891172]
[1749332945675,2.0409856,2520.7,2520.6,0.86190172]
[1749332945878,2.0409856,2520.7,2520.6,0.06891172]
[1749332953574,2.04222544,2520.7,2520.6,0.06891172]
[1749332954068,2.04223674,2520.7,2520.6,0.06891172]
[1749332955172,2.04223674,2520.7,2520.6,0.86190172]
[1749332955378,3.51403673,2520.7,2520.6,0.06891172]
[1749332957376,3.51403673,2520.7,2520.6,0.86191172]
[1749332957877,3.51403673,2520.7,2520.6,0.06891172]
[1749332958378,3.51392103,2520.7,2520.6,0.06891172]
[1749332969180,7.98015,2521.1,2520.7,1.98235]
[1749332969181,5.998,2521.1,2520.7,1.98235]
[1749332969383,5.998,2521.1,2521.0,4.00067]
[1749332969882,0.79277,2521.4,2521.2,0.79281]
[1749332970082,2.02829959,2521.3,2521.2,5.39681]
[1749332970685,0.79278,2521.3,2521.2,5.39681]
[1749332971988,0.79276,2521.4,2521.3,0.79277]
[1749332972183,0.79276,2521.4,2521.3,1.49037]
[1749332973384,0.79273,2521.5,2521.3,1.49037]
[1749332973682,0.79273,2521.5,2521.4,0.79274]
[1749332973885,0.79273,2521.5,2521.3,0.6976]
[1749332974090,2.02006309,2521.5,2521.3,1.49036]
[1749332974279,0.79273,2521.5,2521.3,1.49037]
[1749332974677,0.79274,2521.4,2521.3,1.49037]
[1749332975885,0.00595226,2521.9,2521.3,8.9054]
[1749332976093,0.79262,2521.8,2521.7,0.79262]
[1749332976284,0.79262,2521.8,2521.7,5.39562]
[1749332978292,0.79262,2521.8,2521.7,5.39563]
[1749332978487,2.78546226,2521.9,2521.8,0.79262]
[1749332979493,1.46276226,2521.9,2521.8,0.79262]
[1749332981090,0.79856226,2521.9,2521.8,1.47112]
[1749332984297,0.79856226,2521.9,2521.8,0.6785]
[1749332984997,0.79856226,2521.9,2521.8,1.47112]
[1749332985394,0.79856226,2521.9,2521.8,0.6785]
[1749332985694,0.79856226,2521.9,2521.8,1.47112]
[1749332986595,0.79856226,2521.9,2521.8,0.6785]
[1749332986793,0.79856226,2521.9,2521.8,1.47112]
[1749332988597,0.79856226,2521.9,2521.8,0.6785]
[1749332990295,0.79856226,2521.9,2521.8,1.47112]
[1749332990506,0.79856226,2521.9,2521.8,0.6785]
[1749332990804,0.79856226,2521.9,2521.8,0.74741172]
[1749332991900,0.79856226,2521.9,2521.8,0.06891172]
[1749332992199,2.09116226,2521.9,2521.8,0.06891172]
[1749332995999,2.09116226,2521.9,2521.8,4.69691172]
[1749332999107,3.32388504,2521.9,2521.8,4.69691172]
[1749332999399,3.32388504,2521.9,2521.8,0.06891172]
[1749333001813,8.32388504,2521.9,2521.8,0.06891172]
[1749333002414,3.32388504,2521.9,2521.8,0.06891172]
[1749333003510,6.53168504,2521.9,2521.8,0.06891172]
[1749333006213,6.53479794,2521.9,2521.8,0.06891172]
[1749333006613,12.53279794,2521.9,2521.8,0.06891172]
[1749333007213,11.24019794,2521.9,2521.8,0.06891172]
[1749333009713,12.55159794,2521.9,2521.8,0.06891172]
[1749333010212,11.24019794,2521.9,2521.8,0.06891172]
[1749333013217,8.03239794,2521.9,2521.8,0.06891172]
[1749333013617,8.03285106,2521.9,2521.8,0.06891172]
[1749333022825,8.03303365,2521.9,2521.8,0.06891172]
[1749333028326,8.03313807,2521.9,2521.8,0.06891172]
[1749333032227,8.03313807,2521.9,2521.8,0.86153172]
[1749333034627,8.03313807,2521.9,2521.8,0.06891172]
[1749333038628,8.03313807,2521.9,2521.8,0.86153172]
[1749333038926,8.03313807,2521.9,2521.8,0.06891172]
[1749333050432,8.03367043,2521.9,2521.8,0.06891172]
[1749333052126,8.03367043,2521.9,2521.8,0.86153172]
[1749333052828,7.24106043,2521.9,2521.8,0.86153172]
[1749333053026,8.03365043,2521.9,2521.8,0.86153172]
[1749333053935,2.03565043,2521.9,2521.8,0.86153172]
[1749333055334,1.24306043,2521.9,2521.8,0.86153172]
[1749333060833,1.24335008,2521.9,2521.8,0.86153172]
[1749333064535,2.03594008,2521.9,2521.8,0.86153172]
[1749333065142,2.03559249,2521.9,2521.8,0.86153172]
[1749333065643,1.24300249,2521.9,2521.8,0.86153172]
[1749333066443,1.24289217,2521.9,2521.8,0.86153172]
[1749333072046,2.03548217,2521.9,2521.8,0.86153172]
[1749333073559,2.03548217,2521.9,2521.8,0.06891172]
[1749333074159,2.03548217,2521.9,2521.8,0.86153172]
[1749333074758,2.03548217,2521.9,2521.8,0.06891172]
[1749333075759,2.03548217,2521.9,2521.8,0.86153172]
[1749333076058,2.03548217,2521.9,2521.8,0.06891172]
[1749333076861,2.03548217,2521.9,2521.8,4.66091172]
[1749333077755,2.73188217,2521.9,2521.8,4.66091172]
[1749333078652,6.93929217,2521.9,2521.2,3.2078]
[1749333078865,0.79278,2521.3,2521.2,4.592]
[1749333079062,1.99228559,2521.3,2521.2,4.592]
[1749333079257,4.74748559,2521.3,2521.2,4.592]
[1749333079659,0.79284,2521.1,2521.0,4.592]
[1749333079961,1.99234559,2521.1,2521.0,5.38487]
[1749333080960,1.99234559,2521.1,2521.0,0.79287]
[1749333081160,5.20014559,2521.1,2521.0,0.79287]
[1749333081363,4.00064,2521.1,2521.0,0.79287]
[1749333081562,0.7929,2520.9,2520.8,5.38492]
[1749333081763,0.7929,2520.9,2520.8,0.79293]
[1749333081963,2.18259,2521.0,2520.8,5.38493]
[1749333082161,0.6961,2520.9,2520.8,5.38493]
[1749333082765,0.6961,2520.9,2520.8,0.79293]
[1749333082957,2.0858,2520.9,2520.8,5.38493]
[1749333083965,2.0858,2520.9,2520.8,0.79293]
[1749333084164,2.0858,2520.9,2520.8,5.38493]
[1749333091170,0.6961,2520.9,2520.8,5.38493]
[1749333092463,3.2078,2521.1,2521.0,0.79287]
[1749333095966,1.47468,2521.3,2521.2,0.79281]
[1749333096173,2.77978,2521.3,2521.2,0.79281]
[1749333098978,5.98758,2521.3,2521.2,0.79281]
[1749333100077,2.77978,2521.3,2521.2,0.79281]
[1749333103082,1.47468,2521.3,2521.2,0.79281]
[1749333103481,0.6819,2521.3,2521.2,0.79281]
[1749333104881,1.87685411,2521.3,2521.2,0.79281]
[1749333105085,1.87685274,2521.3,2521.2,0.79281]
[1749333105381,1.87730207,2521.3,2521.2,0.79281]
[1749333108676,2.67008207,2521.3,2521.2,0.79281]
[1749333110282,2.67008207,2521.3,2521.2,0.86172172]
[1749333111480,1.98818207,2521.3,2521.2,0.86172172]
[1749333114484,1.98818207,2521.3,2521.2,1.55112172]
[1749333117676,1.19540207,2521.3,2521.2,1.55112172]
[1749333125789,1.19540207,2521.3,2521.2,2.88882172]
[1749333129207,1.19540207,2521.3,2521.2,1.55112172]
[1749333129908,4.00052,2521.5,2521.3,0.79275]
[1749333130105,1.22519804,2521.4,2521.3,0.79275]
[1749333132403,1.86349804,2521.4,2521.3,0.79275]
[1749333133906,1.86363412,2521.4,2521.3,0.79275]
[1749333139416,2.65638412,2521.4,2521.3,0.79275]
[1749333140714,3.2078,2521.8,2521.3,5.06891172]
[1749333140919,1.22545694,2521.7,2521.6,0.79268]
[1749333141119,1.22545694,2521.7,2521.6,24.61538]
[1749333141413,1.22545694,2521.7,2521.6,29.61538]
[1749333143618,0.00595226,2521.9,2521.8,0.79262]
[1749333147325,0.79854226,2521.9,2521.8,0.79262]
[1749333148725,0.00595226,2521.9,2521.8,0.79262]
[1749333148926,0.79854226,2521.9,2521.8,0.79262]
[1749333151130,0.79854226,2521.9,2521.8,5.37462]
[1749333155921,0.79854226,2521.9,2521.8,5.44353172]
[1749333156527,1.96821698,2521.9,2521.8,5.44353172]
[1749333156721,0.79854226,2521.9,2521.8,5.44353172]
[1749333158626,0.00595226,2521.9,2521.8,5.44353172]
[1749333158829,0.00595226,2521.9,2521.8,7.41963172]
[1749333177749,1.2480283,2521.9,2521.8,7.41963172]
[1749333179843,1.2480283,2521.9,2521.8,6.12203172]
[1749333188253,1.2480283,2521.9,2521.8,7.46083172]
[1749333192964,0.00595226,2521.9,2521.8,7.46083172]
[1749333195361,0.00595226,2521.9,2521.8,7.50293172]
[1749333204068,0.00595226,2521.9,2521.8,10.71073172]
[1749333215686,0.00595226,2521.9,2521.8,9.37193172]
[1749333225287,0.00595226,2521.9,2521.8,6.16413172]
[1749333225693,0.00595226,2521.9,2521.8,9.37193172]
[1749333226497,0.00595226,2521.9,2521.8,6.16413172]
[1749333226793,0.00595226,2521.9,2521.8,9.37193172]
[1749333227996,0.00595226,2521.9,2521.8,9.30302]
[1749333228997,0.00595226,2521.9,2521.8,9.37193172]
[1749333229394,0.00595226,2521.9,2521.8,10.70683172]
[1749333230797,0.00595226,2521.9,2521.8,9.37193172]
[1749333232891,0.00595226,2521.9,2521.8,6.16413172]
[1749333233092,0.00595226,2521.9,2521.8,9.37193172]
[1749333234903,0.00595226,2521.9,2521.8,27.32593172]
[1749333236496,0.00595226,2521.9,2521.8,24.11813172]
[1749333236702,0.00595226,2521.9,2521.8,27.32593172]
[1749333244512,0.00595226,2521.9,2521.8,24.11813172]
[1749333244710,0.00595226,2521.9,2521.8,27.32593172]
[1749333252810,0.6659,2522.2,2522.1,0.79253]
[1749333253017,3.29340973,2522.2,2522.1,8.57833]
[1749333254122,3.29341433,2522.2,2522.1,8.57833]
[1749333256223,3.29341433,2522.2,2522.1,5.37053]
[1749333256527,3.29341433,2522.2,2522.1,8.57833]
[1749333257026,1.90231433,2522.2,2522.1,8.57833]
[1749333257326,0.00595226,2522.4,2522.3,0.79247]
[1749333264523,0.00595226,2522.4,2522.3,1.46037]
[1749333267627,0.00595226,2522.4,2522.3,4.66817]
[1749333272438,1.3937,2522.7,2522.6,0.79238]
[1749333272635,1.3937,2522.7,2522.6,8.57718]
[1749333272832,3.2078,2523.5,2523.4,0.79212]
[1749333273036,5.20547102,2523.5,2523.4,0.79212]
[1749333273238,10.20547102,2523.5,2523.4,0.79212]
[1749333274132,11.46317102,2523.5,2523.4,0.79212]
[1749333274335,0.79213,2523.4,2523.3,0.79213]
[1749333274535,3.25539102,2523.4,2523.3,0.79213]
[1749333274738,8.25539102,2523.4,2523.3,0.79213]